[Event "Fagernes Chess GM-Swiss 2025"]
[Site "Fagernes"]
[Date "2025.04.16"]
[Round "5.32"]
[White "Wernberg, Nikolai Olsen"]
[Black "Hausken, Andreas Skrede"]
[Result "0-1"]
[Annotator "NA RC"]
[ECO "E16"]
[WhiteElo "1893"]
[BlackElo "2002"]
[PlyCount "72"]
[EventDate "2025.04.12"]
[EventCountry "NOR"]
[SourceTitle "playchess.com"]
[Source "ChessBase"]
[SourceQuality "1"]
[TimeControl "40/6000+30:2400+30"]

1. Nf3 {[%emt 0:00:11]} Nf6 {[%emt 0:09:17]} 2. g3 {[%emt 0:00:15]} e6 {[%emt 0:00:20]} 3. Bg2 {[%emt 0:00:28]} b6 {[%emt 0:00:05]} 4. O-O {[%emt 0:00:36]} Bb7 {[%emt 0:00:02]} 5. d4 {[%emt 0:01:00]} c5 {[%emt 0:00:14]} 6. c4 {[%emt 0:01:10]} d5 {[%emt 0:00:35]} 7. Nc3 {[%emt 0:06:31]} Nbd7 {[%emt 0:01:27]} 8. Qa4 {[%emt 0:04:28]} Be7 {[%emt 0:02:35]} 9. dxc5 {[%emt 0:01:06]} Bxc5 {[%emt 0:03:15]} 10. cxd5 {[%emt 0:00:57]} Nxd5 {[%emt 0:00:57]} 11. Rd1 {[%emt 0:02:46]} O-O {[%emt 0:01:38]} 12. e4 {[%emt 0:01:11]} N5f6 {[%emt 0:02:24]} 13. Ne5 {[%emt 0:01:20]} Bc8 {[%emt 0:00:29]} 14. Nc6 {[%emt 0:01:46]} Qc7 {[%emt 0:01:56]} 15. e5 {[%emt 0:01:22]} Nd5 {[%emt 0:00:43]} 16. Rxd5 {[%emt 0:01:20]} exd5 {[%emt 0:00:05]} 17. Nxd5 {[%emt 0:00:11]} Qb7 {[%emt 0:00:09]} 18. Nce7+ {[%emt 0:19:48]} Kh8 {[%emt 0:00:54]} 19. Nf6 {[%emt 0:00:23]} Qc7 {[%emt 0:01:17]} 20. Qh4 {[%emt 0:00:51]} Bxf2+ {[%emt 0:01:31]} 21. Kxf2 {[%emt 0:00:57]} Qc2+ {[%emt 0:01:20]} 22. Kg1 {[%emt 0:00:44]} Qd1+ {[%emt 0:00:31]} 23. Kf2 {[%emt 0:01:17]} Qc2+ {[%emt 0:00:22]} 24. Ke1 {[%emt 0:01:34]} Ba6 {[%emt 0:02:51]} 25. Ng6+ {[%emt 0:03:59]} Qxg6 {[%emt 0:00:12]} 26. Be4 {[%emt 0:00:09]} gxf6 {[%emt 0:00:21]} 27. Bxg6 {[%emt 0:00:13]} fxg6 {[%emt 0:00:01]} 28. e6 {[%emt 0:03:15]} Rfe8 {[%emt 0:00:43]} 29. Kf2 {[%emt 0:02:56]} Rxe6 {[%emt 0:00:31]} 30. Be3 {[%emt 0:03:12]} Rae8 {[%emt 0:00:08]} 31. Rd1 {[%emt 0:01:29]} Rxe3 {[%emt 0:03:37]} 32. Rxd7 {[%emt 0:00:59]} Re2+ {[%emt 0:00:03]} 33. Kg1 {[%emt 0:00:08]} Re1+ {[%emt 0:00:50]} 34. Kf2 {[%emt 0:01:42]} R8e2+ {[%emt 0:00:18]} 35. Kf3 {[%emt 0:00:25]} Rf1+ {[%emt 0:00:04]} 36. Kg4 {[%emt 0:00:09]} Re4+ {[%emt 0:00:06]} 0-1

[Event "Fagernes Chess GM-Swiss 2025"]
[Site "Fagernes"]
[Date "2025.04.18"]
[Round "7.1"]
[White "Raja Rithvik R"]
[Black "Ghosh, Diptayan"]
[Result "1/2-1/2"]
[Annotator "TA"]
[ECO "C91"]
[WhiteElo "2538"]
[BlackElo "2573"]
[PlyCount "41"]
[EventDate "2025.04.12"]
[EventCountry "NOR"]
[SourceTitle "playchess.com"]
[Source "ChessBase"]
[SourceQuality "1"]
[TimeControl "40/6000+30:2400+30"]

{[%evp 28,41,18,9,49,7,22,16,8,20,9,7,25,35,20,9]} 1. e4 {[%emt 0:02:16]} e5 {[%emt 0:01:48]} 2. Nf3 {[%emt 0:00:06]} Nc6 {[%emt 0:00:04]} 3. Bb5 {[%emt 0:00:05][%cal Bf1b5,Bb5a4,Ba4b3][%mdl 32]} a6 {[%emt 0:00:14]} 4. Ba4 {[%emt 0:00:06]} Nf6 {[%emt 0:00:07]} 5. O-O {[%emt 0:00:08]} Be7 {[%emt 0:00:07]} 6. Re1 {[%emt 0:00:12]} b5 {[%emt 0:00:13]} 7. Bb3 {[%emt 0:00:05]} d6 {[%emt 0:00:03]} 8. c3 {[%emt 0:00:21][%cal Bc2c3,Bc3d4][%mdl 32]} O-O {[%emt 0:00:05]} 9. d4 {[%emt 0:00:05]} Bg4 {[%emt 0:01:01]} 10. Be3 {[%emt 0:00:12]} exd4 {[%emt 0:04:44]} 11. cxd4 {[%emt 0:01:17]} Na5 {[%emt 0:00:06]} 12. Bc2 {[%emt 0:00:05]} Nc4 {[%emt 0:00:50]} 13. Bc1 {[%emt 0:00:08]} c5 {[%emt 0:00:11]} 14. b3 {[%emt 0:00:17]} Nb6 {[%emt 0:01:07]} 15. Nbd2 {[%emt 0:00:16]} cxd4 {[%emt 0:16:34] C91: Closed Ruy Lopez: 7...d6 8 c3 0-0 9 d4.} 16. h3 {[%emt 0:00:25]} Bh5 {[%emt 0:00:18]} 17. g4 {[%emt 0:00:46]} d3 {[%emt 0:07:59]} 18. Bxd3 {[%emt 0:01:41]} Bg6 {[%emt 0:00:04]} 19. Bb2 {[%emt 0:16:20]} Rc8 {[%emt 0:05:34]} 20. Qe2 {[%emt 0:26:41]} Nfd7 {[%emt 0:14:09]} 21. Rad1 $146 {[%emt 0:14:29] Not much happened in this game.   Weighted Error Value: White=0.09 (flawless) /Black=0.07 (flawless)   Inaccurate:     	White=1     	---        OK:         	White=3     	Black=5} (21. a4 bxa4 22. bxa4 a5 23. Nb3 Bf6 24. Bb5 Bxe4 25. Qxe4 Bxb2 26. Rad1 Bc3 27. Re2 {0-1 Polzin,R (2460)-Bindrich,F (2542) AUT-chT 1112 2012 (5.2)}) 1/2-1/2

[Event "Fagernes Chess GM-Swiss 2025"]
[Site "Fagernes"]
[Date "2025.04.18"]
[Round "7.2"]
[White "Urkedal, Frode Olav Olsen"]
[Black "Ghasi, Ameet K"]
[Result "1-0"]
[Annotator "RC"]
[ECO "E71"]
[WhiteElo "2550"]
[BlackElo "2502"]
[PlyCount "61"]
[EventDate "2025.04.12"]
[EventCountry "NOR"]
[SourceTitle "playchess.com"]
[Source "ChessBase"]
[SourceQuality "1"]
[TimeControl "40/6000+30:2400+30"]

1. d4 {[%emt 0:00:04]} Nf6 {[%emt 0:01:57]} 2. c4 {[%emt 0:00:06]} g6 {[%emt 0:00:05]} 3. Nc3 {[%emt 0:00:02]} Bg7 {[%emt 0:00:09]} 4. e4 {[%emt 0:00:05]} d6 {[%emt 0:00:05]} 5. h3 {[%emt 0:00:38]} O-O {[%emt 0:00:43]} 6. Be3 {[%emt 0:01:26]} Nc6 {[%emt 0:01:16]} 7. d5 {[%emt 0:00:05]} Ne5 {[%emt 0:00:17]} 8. f4 {[%emt 0:00:26]} Ned7 {[%emt 0:00:23]} 9. Nge2 {[%emt 0:00:19]} c6 {[%emt 0:04:12]} 10. Ng3 {[%emt 0:03:48]} cxd5 {[%emt 0:10:32]} 11. cxd5 {[%emt 0:00:51]} Qa5 {[%emt 0:06:45]} 12. a3 {[%emt 0:09:10]} h5 {[%emt 0:04:27]} 13. Bd3 {[%emt 0:02:59]} Nc5 {[%emt 0:25:59]} 14. Bc2 {[%emt 0:01:46]} Qc7 {[%emt 0:09:39]} 15. O-O {[%emt 0:04:14]} e6 {[%emt 0:07:37]} 16. dxe6 {[%emt 0:13:46]} Bxe6 {[%emt 0:03:29]} 17. Nb5 {[%emt 0:06:11]} Qb6 {[%emt 0:05:27]} 18. Nxd6 {[%emt 0:00:32]} h4 {[%emt 0:13:23]} 19. b4 {[%emt 0:02:05]} hxg3 {[%emt 0:00:06]} 20. Bxc5 {[%emt 0:00:23]} Qc7 {[%emt 0:03:56]} 21. f5 {[%emt 0:01:40]} gxf5 {[%emt 0:00:12]} 22. Nxf5 {[%emt 0:05:20]} Bxf5 {[%emt 0:00:29]} 23. Rxf5 {[%emt 0:00:04]} Rfd8 {[%emt 0:03:07]} 24. Qf3 {[%emt 0:02:23]} b6 {[%emt 0:00:03]} 25. e5 {[%emt 0:00:15]} Nd7 {[%emt 0:00:06]} 26. Rxf7 {[%emt 0:23:24]} Qxe5 {[%emt 0:02:36]} 27. Rxg7+ {[%emt 0:01:03]} Qxg7 {[%emt 0:02:03]} 28. Bb3+ {[%emt 0:03:40]} Kh7 {[%emt 0:00:11]} 29. Qh5+ {[%emt 0:00:29]} Qh6 {[%emt 0:00:05]} 30. Qf7+ {[%emt 0:00:04]} Qg7 {[%emt 0:00:04]} 31. Bc2+ {[%emt 0:00:06]} 1-0

[Event "Fagernes Chess GM-Swiss 2025"]
[Site "Fagernes"]
[Date "2025.04.18"]
[Round "7.3"]
[White "Jumabayev, Rinat"]
[Black "Moksh Amit Doshi"]
[Result "1-0"]
[Annotator "RC"]
[ECO "A17"]
[WhiteElo "2549"]
[BlackElo "2369"]
[PlyCount "113"]
[EventDate "2025.04.12"]
[EventCountry "NOR"]
[SourceTitle "playchess.com"]
[Source "ChessBase"]
[SourceQuality "1"]
[TimeControl "40/6000+30:2400+30"]

1. Nf3 {[%emt 0:00:03]} d5 {[%emt 0:04:17]} 2. c4 {[%emt 0:00:06]} e6 {[%emt 0:01:00]} 3. e3 {[%emt 0:03:22]} Nf6 {[%emt 0:00:09]} 4. Nc3 {[%emt 0:00:16]} Bd6 {[%emt 0:01:06]} 5. b3 {[%emt 0:00:33]} O-O {[%emt 0:00:15]} 6. Bb2 {[%emt 0:00:12]} Re8 {[%emt 0:00:50]} 7. Qc2 {[%emt 0:01:33]} c5 {[%emt 0:06:16]} 8. Na4 {[%emt 0:17:43]} dxc4 {[%emt 0:08:10]} 9. Bxc4 {[%emt 0:03:01]} a6 {[%emt 0:06:07]} 10. Be2 {[%emt 0:00:57]} Nbd7 {[%emt 0:00:31]} 11. O-O {[%emt 0:01:02]} b5 {[%emt 0:01:57]} 12. Nc3 {[%emt 0:00:13]} Bb7 {[%emt 0:00:08]} 13. a4 {[%emt 0:18:46]} b4 {[%emt 0:03:32]} 14. Nb1 {[%emt 0:00:16]} Ng4 {[%emt 0:12:15]} 15. h3 {[%emt 0:02:38]} Nge5 {[%emt 0:02:54]} 16. Ne1 {[%emt 0:00:51]} Ng6 {[%emt 0:10:18]} 17. d3 {[%emt 0:05:47]} Rc8 {[%emt 0:03:51]} 18. Nd2 {[%emt 0:01:47]} Bb8 {[%emt 0:01:48]} 19. Nef3 {[%emt 0:11:39]} Nde5 {[%emt 0:03:35]} 20. Rfd1 {[%emt 0:01:36]} Nxf3+ {[%emt 0:02:29]} 21. Nxf3 {[%emt 0:13:01]} Qd6 {[%emt 0:03:42]} 22. Kf1 {[%emt 0:01:20]} h6 {[%emt 0:01:56]} 23. Rac1 {[%emt 0:00:16]} Red8 {[%emt 0:01:12]} 24. Ba1 {[%emt 0:01:20]} a5 {[%emt 0:04:34]} 25. Qb2 {[%emt 0:03:35]} e5 {[%emt 0:03:39]} 26. Nd2 {[%emt 0:10:51]} Qf6 {[%emt 0:08:45]} 27. Ne4 {[%emt 0:04:59]} Bxe4 {[%emt 0:05:36]} 28. dxe4 {[%emt 0:00:05]} Rxd1+ {[%emt 0:01:27]} 29. Rxd1 {[%emt 0:00:10]} Rd8 {[%emt 0:01:16]} 30. Rc1 {[%emt 0:01:33]} Qc6 {[%emt 0:02:20]} 31. Qc2 {[%emt 0:00:19]} Bd6 {[%emt 0:00:38]} 32. Bb5 {[%emt 0:01:56]} Qb6 {[%emt 0:02:01]} 33. Bc4 {[%emt 0:00:43]} Kf8 {[%emt 0:00:36]} 34. Qe2 {[%emt 0:00:25]} Bc7 {[%emt 0:00:34]} 35. Bb2 {[%emt 0:01:48]} Ne7 {[%emt 0:00:29]} 36. Qh5 {[%emt 0:03:09]} Qg6 {[%emt 0:00:38]} 37. Qxg6 {[%emt 0:00:18]} Nxg6 {[%emt 0:00:07]} 38. Ke2 {[%emt 0:00:20]} Ke7 {[%emt 0:01:39]} 39. g3 {[%emt 0:00:06]} Bd6 {[%emt 0:01:13]} 40. f4 {[%emt 0:00:41]} f6 {[%emt 0:00:27]} 41. Rf1 {[%emt 0:06:04]} Bc7 {[%emt 0:08:40]} 42. h4 {[%emt 0:00:39]} exf4 {[%emt 0:02:10]} 43. exf4 {[%emt 0:02:33]} Nf8 {[%emt 0:00:24]} 44. Rc1 {[%emt 0:07:54]} h5 {[%emt 0:07:13]} 45. Bd5 {[%emt 0:23:52]} Bd6 {[%emt 0:06:55]} 46. Rc2 {[%emt 0:00:28]} Ne6 {[%emt 0:02:08]} 47. Kd3 {[%emt 0:00:30]} Nd4 {[%emt 0:09:15]} 48. Bxd4 {[%emt 0:00:22]} cxd4 {[%emt 0:00:04]} 49. Rc6 {[%emt 0:00:15]} Rd7 {[%emt 0:02:08]} 50. Ra6 {[%emt 0:01:17]} Rc7 {[%emt 0:01:58]} 51. Bc4 {[%emt 0:01:02]} Rc5 {[%emt 0:01:00]} 52. Ra7+ {[%emt 0:00:51]} Bc7 {[%emt 0:05:26]} 53. Kxd4 {[%emt 0:00:06]} Rc6 {[%emt 0:00:06]} 54. e5 {[%emt 0:01:10]} fxe5+ {[%emt 0:00:34]} 55. fxe5 {[%emt 0:00:01]} Kd8 {[%emt 0:00:22]} 56. Kd5 {[%emt 0:00:13]} Rg6 {[%emt 0:00:26]} 57. e6 {[%emt 0:00:58]} 1-0

[Event "Fagernes Chess GM-Swiss 2025"]
[Site "Fagernes"]
[Date "2025.04.18"]
[Round "7.4"]
[White "Mitusov, Semen"]
[Black "Kantor, Gergely"]
[Result "1/2-1/2"]
[Annotator "TA"]
[ECO "C48"]
[WhiteElo "2459"]
[BlackElo "2578"]
[PlyCount "105"]
[EventDate "2025.04.12"]
[EventCountry "NOR"]
[SourceTitle "playchess.com"]
[Source "ChessBase"]
[SourceQuality "1"]
[TimeControl "40/6000+30:2400+30"]

{[%evp 9,105,-18,-15,-9,-20,-15,0,-22,-17,-38,-33,-45,-35,-29,-25,-41,-29,-59,-31,-57,-49,-50,-33,-47,-32,-41,-15,-40,-58,-65,-52,-70,6,-1,-7,-14,-18,-18,-16,-14,-17,-13,-12,-17,-18,-21,-9,-72,-58,-65,-51,-69,-51,-49,-55,-81,-83,-85,-65,-95,-45,-48,0,0,0,-39,0,0,0,0,7,15,63,74,78,78,118,0,120,0,0,0,0,0,0,0,0,0,0,0,0,0,0,0,0,0,0,0]} 1. e4 {[%emt 0:00:44]} e5 {[%emt 0:00:04]} 2. Nf3 {[%emt 0:01:03]} Nc6 {[%emt 0:00:03]} 3. Nc3 {[%emt 0:00:39]} Nf6 {[%emt 0:00:17]} 4. Bb5 {[%emt 0:00:07]} Bd6 {[%emt 0:03:53]} 5. d4 {[%emt 0:06:10]} exd4 {[%emt 0:05:16]} 6. Nxd4 {[%emt 0:03:25] C48: Four Knights: 4 Bb5, replies other than 4...Bb4.} O-O {[%emt 0:02:55]} 7. Bg5 {[%emt 0:05:37]} Re8 {[%emt 0:08:09][%cal Of6e4] [#]} 8. Nde2 {[%emt 0:10:32]} Be5 $146 {[%emt 0:07:09]} (8... a6 9. Bd3 Ne5 10. h3 h6 11. Be3 Nxd3+ 12. cxd3 Bb4 13. f4 d5 14. e5 c5 {1-0 Eminov,O (2260)-Karaoglan,K (1739) Kesan op 11th 2013 (1)}) 9. Bxf6 {[%emt 0:19:37]} Bxf6 {[%emt 0:03:53]} 10. O-O {[%emt 0:00:28]} d6 {[%emt 0:00:31]} 11. Qd2 {[%emt 0:01:05]} a6 {[%emt 0:04:45]} 12. Bc4 {[%emt 0:00:43]} Ne5 {[%emt 0:05:31]} 13. Bd5 {[%emt 0:06:52]} Rb8 {[%emt 0:06:04]} 14. a3 {[%emt 0:04:51]} b5 {[%emt 0:01:38]} 15. Rad1 {[%emt 0:01:58]} Nc4 {[%emt 0:04:37]} 16. Qc1 {[%emt 0:02:18]} Bg4 {[%emt 0:01:03][%cal Oc4b2]} 17. f3 {[%emt 0:04:50]} Bg5 {[%emt 0:16:12]} 18. Bxf7+ {[%emt 0:07:02]} Kxf7 {[%emt 0:02:10]} 19. fxg4+ {[%emt 0:00:02]} Kg8 {[%emt 0:00:18]} 20. Nf4 {[%emt 0:00:32]} Rf8 {[%emt 0:03:42]} (20... c6 $15 21. Kh1 Qf6) 21. Nce2 {[%emt 0:03:03]} c6 {[%emt 0:05:34]} 22. Nd4 {[%emt 0:04:34][%cal Ob2b3]} Qe8 {[%emt 0:15:55]} 23. b3 {[%emt 0:09:50]} Qxe4 {[%emt 0:06:40]} 24. Rfe1 $1 {[%emt 0:01:24]} Qxf4 {[%emt 0:05:14]} 25. Qxf4 {[%emt 0:00:13] Successful Defense White} Bxf4 {[%emt 0:00:49]} 26. bxc4 {[%emt 0:00:09] g3 would now be deadly.} Rbe8 {[%emt 0:00:33]} (26... bxc4 $6 27. Ne6 $16 (27. Nxc6 Rbe8 $11)) 27. Rxe8 {[%emt 0:09:09]} Rxe8 {[%emt 0:00:05]} 28. cxb5 {[%emt 0:00:04]} (28. Nxc6 $11 bxc4 29. Nb4) 28... cxb5 $11 {[%emt 0:00:36][%mdl 4096] Endgame KRB-KRN} 29. g3 {[%emt 0:02:08]} Be3+ {[%emt 0:00:24]} 30. Kf1 {[%emt 0:00:01]} g6 {[%emt 0:00:35]} 31. Nb3 {[%emt 0:00:40]} Re6 {[%emt 0:00:25]} 32. Rd5 {[%emt 0:00:52]} Kf7 {[%emt 0:00:27]} 33. Rd3 {[%emt 0:03:08]} Bb6 {[%emt 0:00:36]} 34. Rc3 {[%emt 0:00:22]} d5 {[%emt 0:00:37]} ({Black should play} 34... Ke7 $17 35. h4 Rf6+ 36. Ke2 Rf2+ 37. Kd1 Kd7) 35. Rc8 $1 $15 {[%emt 0:00:41]} Re8 {[%emt 0:00:43]} (35... Rf6+ $15 36. Ke1 Re6+ 37. Kd2 Be3+ 38. Kd3 Bg1) 36. Rc6 $11 {[%emt 0:00:11]} Re6 {[%emt 0:00:02]} 37. Rc8 {[%emt 0:00:01]} a5 {[%emt 0:00:39][%cal Ba6a5,Ba5a4][%mdl 32]} 38. Nc5 {[%emt 0:00:28]} Rf6+ {[%emt 0:00:02]} 39. Ke2 {[%emt 0:00:19]} Ke7 {[%emt 0:00:44]} 40. g5 {[%emt 0:00:07]} Rd6 {[%emt 0:00:29]} (40... Rf7 $11) 41. Kd3 $1 $14 {[%emt 0:43:11]} a4 {[%emt 0:16:49]} (41... Rd8 42. Rxd8 Bxd8 43. Kd4 $16) 42. c3 {[%emt 0:00:00]} Kf7 {[%emt 0:01:35]} 43. Kd4 {[%emt 0:00:00]} (43. h3 $16) 43... Rd7 {[%emt 0:01:38] [#]} (43... Ke7 $11 {remains equal.}) 44. Rb8 {[%emt 0:00:00]} ({White should try} 44. Rc6 $1 $16 {[%cal Rc6b6]} Bxc5+ 45. Rxc5) 44... Rd6 $11 {[%emt 0:00:33] The position is equal.} 45. Rb7+ {[%emt 0:00:00]} Ke8 {[%emt 0:03:40]} 46. Rb8+ {[%emt 0:00:00]} (46. Rxh7 $2 Rc6 47. Rb7 (47. Kxd5 $2 {too greedy.} Rxc5+ 48. Kd6 Rxc3 $19) (47. Rh8+ $2 Kf7 $19) 47... Bxc5+ $19) 46... Ke7 {[%emt 0:01:07]} 47. Rc8 {[%emt 0:00:00]} Rd7 {[%emt 0:00:26]} 48. Rc6 {[%emt 0:00:00]} ({Don't take} 48. Rb8 Rd6 $14) 48... Rd6 $1 {[%emt 0:01:34]} 49. Rc8 {[%emt 0:00:00]} Rd7 {[%emt 0:00:12]} 50. Ke5 {[%emt 0:00:00]} (50. Rb8 Rd6) 50... Bc7+ {[%emt 0:00:11]} 51. Kd4 {[%emt 0:00:00]} Bb6 {[%emt 0:00:08] And now ...Kd6 would win.} 52. Rc6 {[%emt 0:00:00]} Rd6 $1 {[%emt 0:00:14]} 53. Rc8 {[%emt 0:00:00] Weighted Error Value: White=0.12 (very precise) /Black=0.15 (very precise)   Mistake:       	White=3     	Black=5      Inaccurate:     	White=4     	Black=4      OK:         	White=14    	Black=15     Best:        	White=6     	Black=5      Strong:       	White=3     	Black=2} 1/2-1/2

[Event "Fagernes Chess GM-Swiss 2025"]
[Site "Fagernes"]
[Date "2025.04.18"]
[Round "7.5"]
[White "Makhnev, Denis"]
[Black "Urazayev, Arystanbek"]
[Result "1/2-1/2"]
[Annotator "RC"]
[ECO "E11"]
[WhiteElo "2537"]
[BlackElo "2467"]
[PlyCount "25"]
[EventDate "2025.04.12"]
[EventCountry "NOR"]
[SourceTitle "playchess.com"]
[Source "ChessBase"]
[SourceQuality "1"]
[TimeControl "40/6000+30:2400+30"]

1. d4 {[%emt 0:05:43]} Nf6 {[%emt 0:00:06]} 2. c4 {[%emt 0:00:10]} e6 {[%emt 0:00:06]} 3. Nf3 {[%emt 0:00:07]} d5 {[%emt 0:00:06]} 4. g3 {[%emt 0:00:11]} Bb4+ {[%emt 0:00:06]} 5. Bd2 {[%emt 0:00:07]} Be7 {[%emt 0:00:06]} 6. Bg2 {[%emt 0:00:08]} O-O {[%emt 0:00:09]} 7. O-O {[%emt 0:00:10]} Nbd7 {[%emt 0:00:09]} 8. Qc2 {[%emt 0:00:10]} c6 {[%emt 0:00:06]} 9. Bf4 {[%emt 0:00:50]} Nh5 {[%emt 0:00:50]} 10. Bd2 {[%emt 0:00:08]} Nhf6 {[%emt 0:00:26]} 11. Bf4 {[%emt 0:00:10]} Nh5 {[%emt 0:00:11]} 12. Bd2 {[%emt 0:00:05]} Nhf6 {[%emt 0:00:06]} 13. Bf4 {[%emt 0:00:40]} 1/2-1/2

[Event "Fagernes Chess GM-Swiss 2025"]
[Site "Fagernes"]
[Date "2025.04.18"]
[Round "7.6"]
[White "Kreken, Eivind Grunt"]
[Black "Rozentalis, Eduardas"]
[Result "1-0"]
[Annotator "RC"]
[ECO "B15"]
[WhiteElo "2326"]
[BlackElo "2481"]
[PlyCount "73"]
[EventDate "2025.04.12"]
[EventCountry "NOR"]
[SourceTitle "playchess.com"]
[Source "ChessBase"]
[SourceQuality "1"]
[TimeControl "40/6000+30:2400+30"]

1. e4 {[%emt 0:00:03]} c6 {[%emt 0:00:17]} 2. d4 {[%emt 0:00:22]} d5 {[%emt 0:00:06]} 3. Nc3 {[%emt 0:00:08]} g6 {[%emt 0:00:44]} 4. e5 {[%emt 0:00:15]} Bg7 {[%emt 0:00:54]} 5. Bf4 {[%emt 0:01:15]} f6 {[%emt 0:03:27]} 6. Qd2 {[%emt 0:05:15]} fxe5 {[%emt 0:02:28]} 7. dxe5 {[%emt 0:00:50]} Nd7 {[%emt 0:01:23]} 8. Nf3 {[%emt 0:01:42]} Nf8 {[%emt 0:09:17]} 9. O-O-O {[%emt 0:09:38]} Bg4 {[%emt 0:10:37]} 10. Be2 {[%emt 0:03:39]} Bxf3 {[%emt 0:01:45]} 11. Bxf3 {[%emt 0:04:48]} Ne6 {[%emt 0:03:36]} 12. Kb1 {[%emt 0:03:56]} Nxf4 {[%emt 0:05:17]} 13. Qxf4 {[%emt 0:00:12]} Nh6 {[%emt 0:01:54]} 14. Bxd5 {[%emt 0:12:59]} cxd5 {[%emt 0:00:58]} 15. Nxd5 {[%emt 0:02:40]} Qb8 {[%emt 0:05:38]} 16. Rhe1 {[%emt 0:23:46]} b5 {[%emt 0:11:48]} 17. Qf3 {[%emt 0:06:43]} Nf7 {[%emt 0:04:33]} 18. Nc7+ {[%emt 0:12:50]} Qxc7 {[%emt 0:00:22]} 19. Qxa8+ {[%emt 0:00:08]} Nd8 {[%emt 0:00:06]} 20. Qd5 {[%emt 0:01:24]} Rf8 {[%emt 0:11:01]} 21. Qxb5+ {[%emt 0:02:52]} Kf7 {[%emt 0:01:38]} 22. Rd7 {[%emt 0:05:22]} Qb6 {[%emt 0:04:22]} 23. Qd5+ {[%emt 0:01:06]} Ke8 {[%emt 0:04:19]} 24. Rd1 {[%emt 0:04:16]} Nc6 {[%emt 0:00:44]} 25. f4 {[%emt 0:03:51]} Rxf4 {[%emt 0:03:16]} 26. Qg8+ {[%emt 0:01:24]} Bf8 {[%emt 0:00:12]} 27. Qe6 {[%emt 0:01:00]} Bg7 {[%emt 0:06:25]} 28. R7d5 {[%emt 0:00:16]} Rf5 {[%emt 0:06:29]} 29. Qg8+ {[%emt 0:00:23]} Bf8 {[%emt 0:00:03]} 30. Qe6 {[%emt 0:01:05]} Bg7 {[%emt 0:00:06]} 31. Qg8+ {[%emt 0:00:26]} Bf8 {[%emt 0:00:05]} 32. Qxh7 {[%emt 0:00:12]} Nxe5 {[%emt 0:00:21]} 33. g4 {[%emt 0:00:54]} Rg5 {[%emt 0:03:56]} 34. h4 {[%emt 0:00:42]} Rxg4 {[%emt 0:01:32]} 35. Rxe5 {[%emt 0:00:22]} Qd6 {[%emt 0:00:58]} 36. Ree1 {[%emt 0:00:35]} Qf6 {[%emt 0:00:25]} 37. h5 {[%emt 0:00:43]} 1-0